[Event "19th Prague Open-A 2020"]
[Site "Prague"]
[Date "2020.01.10"]
[Round "1.1"]
[White "Tesar, Jan"]
[Black "Quesada Perez, Luis Ernesto"]
[Result "0-1"]
[ECO "A45"]
[WhiteElo "2001"]
[BlackElo "2491"]
[Annotator "ChessBase"]
[PlyCount "72"]
[EventDate "2020.01.10"]
[EventType "swiss"]
[EventCountry "CZE"]
[SourceTitle "playchess.com"]
[Source "ChessBase"]
[SourceQuality "1"]
[TimeControl "40/5400+30:1800+30"]

1. d4 {[%emt 0:00:00]} Nf6 {[%emt 0:00:00]} 2. g3 {[%emt 0:00:00]} c5 {[%emt 0:00:31]} 3. d5 {[%emt 0:01:14]} e6 {[%emt 0:00:27]} 4. Nc3 {[%emt 0:00:33]} d6 {[%emt 0:00:05]} 5. Bg2 {[%emt 0:00:30]} Be7 {[%emt 0:00:19]} 6. e4 {[%emt 0:04:07]} O-O {[%emt 0:01:13]} 7. Nf3 {[%emt 0:00:23]} exd5 {[%emt 0:00:26]} 8. exd5 {[%emt 0:00:29]} Na6 {[%emt 0:00:55]} 9. O-O {[%emt 0:00:27]} Bf5 {[%emt 0:01:21]} 10. Nh4 {[%emt 0:02:22]} Bd7 {[%emt 0:00:19]} 11. a4 {[%emt 0:04:05]} Re8 {[%emt 0:04:24]} 12. h3 {[%emt 0:07:23]} h6 {[%emt 0:08:55]} 13. Nb5 {[%emt 0:03:06]} Qb6 {[%emt 0:00:24]} 14. c4 {[%emt 0:01:04]} Nb4 {[%emt 0:00:11]} 15. Bd2 {[%emt 0:10:44]} a6 {[%emt 0:01:01]} 16. Nc3 {[%emt 0:00:43]} Nh7 {[%emt 0:18:33]} 17. Nf3 {[%emt 0:12:50]} Bf5 {[%emt 0:06:07]} 18. a5 {[%emt 0:00:14]} Qd8 {[%emt 0:00:46]} 19. Ne2 {[%emt 0:02:06]} Bc2 {[%emt 0:00:45]} 20. Qc1 {[%emt 0:06:28]} Bd3 {[%emt 0:00:04]} 21. Nf4 {[%emt 0:04:26]} Bxf1 {[%emt 0:00:05]} 22. Bxf1 {[%emt 0:00:12]} Ng5 {[%emt 0:00:35]} 23. Nh4 {[%emt 0:05:32]} Bf6 {[%emt 0:01:52]} 24. Nf5 {[%emt 0:02:31]} Qd7 {[%emt 0:00:56]} 25. g4 {[%emt 0:00:54]} Nf3+ {[%emt 0:04:59]} 26. Kg2 {[%emt 0:02:31]} Nd4 {[%emt 0:02:01]} 27. Nxd4 {[%emt 0:02:50]} Bxd4 {[%emt 0:00:06]} 28. Ra3 {[%emt 0:02:33]} Qe7 {[%emt 0:04:01]} 29. Rf3 {[%emt 0:01:41]} Qe4 {[%emt 0:02:03]} 30. Bxb4 {[%emt 0:03:02]} cxb4 {[%emt 0:00:01]} 31. Bd3 {[%emt 0:00:18]} Qe1 {[%emt 0:02:05]} 32. Qc2 {[%emt 0:00:30]} Qa1 {[%emt 0:00:59]} 33. Bh7+ {[%emt 0:06:29]} Kh8 {[%emt 0:00:01]} 34. Bg6 {[%emt 0:04:59]} Re1 {[%emt 0:05:57]} 35. Ne2 {[%emt 0:01:10]} fxg6 {[%emt 0:00:49]} 36. Rf7 {[%emt 0:01:11]} Qxb2 {[%emt 0:00:47]} 0-1

[Event "19th Prague Open-A 2020"]
[Site "Prague"]
[Date "2020.01.10"]
[Round "1.14"]
[White "Priehoda, Vitezslav"]
[Black "Sovina, Maria"]
[Result "1-0"]
[ECO "A36"]
[WhiteElo "2341"]
[BlackElo "1943"]
[Annotator "RC"]
[PlyCount "101"]
[EventDate "2020.01.10"]
[EventType "swiss"]
[EventCountry "CZE"]
[SourceTitle "playchess.com"]
[Source "ChessBase"]
[SourceQuality "1"]
[TimeControl "40/5400+30:1800+30"]

1. c4 {[%emt 0:00:00]} c5 {[%emt 0:00:00]} 2. Nc3 {[%emt 0:00:00]} Nc6 {[%emt 0:00:00]} 3. g3 {[%emt 0:00:29]} g6 {[%emt 0:00:00]} 4. Bg2 {[%emt 0:00:07]} Bg7 {[%emt 0:00:00]} 5. a3 {[%emt 0:01:51]} e6 {[%emt 0:01:00]} 6. d3 {[%emt 0:02:52]} Nge7 {[%emt 0:01:14]} 7. Nf3 {[%emt 0:00:39]} O-O {[%emt 0:04:33]} 8. Bg5 {[%emt 0:06:15]} h6 {[%emt 0:05:18]} 9. Bd2 {[%emt 0:00:05]} d5 {[%emt 0:01:16]} 10. cxd5 {[%emt 0:01:34]} Nxd5 {[%emt 0:04:13]} 11. O-O {[%emt 0:04:33]} b6 {[%emt 0:10:07]} 12. Rb1 {[%emt 0:08:07]} Bb7 {[%emt 0:04:30]} 13. Nxd5 {[%emt 0:00:29]} Qxd5 {[%emt 0:01:45]} 14. b4 {[%emt 0:02:28]} cxb4 {[%emt 0:00:54]} 15. axb4 {[%emt 0:00:05]} Nd4 {[%emt 0:01:56]} 16. Ne1 {[%emt 0:07:31]} Qd7 {[%emt 0:00:40]} 17. Bxb7 {[%emt 0:00:42]} Qxb7 {[%emt 0:00:02]} 18. Nc2 {[%emt 0:03:36]} Nxc2 {[%emt 0:05:08]} 19. Qxc2 {[%emt 0:00:04]} Rfc8 {[%emt 0:03:09]} 20. Qb3 {[%emt 0:00:19]} Rc7 {[%emt 0:04:26]} 21. Rfc1 {[%emt 0:02:44]} Rac8 {[%emt 0:01:00]} 22. b5 {[%emt 0:00:24]} Rxc1+ {[%emt 0:10:09]} 23. Rxc1 {[%emt 0:00:06]} Rxc1+ {[%emt 0:00:03]} 24. Bxc1 {[%emt 0:00:06]} Qc8 {[%emt 0:07:20]} 25. Be3 {[%emt 0:09:42]} h5 {[%emt 0:04:31]} 26. Kg2 {[%emt 0:10:25]} Qb7+ {[%emt 0:05:28]} 27. f3 {[%emt 0:00:10]} Qc7 {[%emt 0:00:20]} 28. Bf2 {[%emt 0:06:37]} Qe5 {[%emt 0:01:50]} 29. e4 {[%emt 0:00:49]} Qc3 {[%emt 0:01:29]} 30. Qxc3 {[%emt 0:01:06]} Bxc3 {[%emt 0:00:02]} 31. g4 {[%emt 0:00:07]} hxg4 {[%emt 0:08:02]} 32. fxg4 {[%emt 0:00:02]} e5 {[%emt 0:01:07]} 33. Bh4 {[%emt 0:02:35]} Kf8 {[%emt 0:03:10]} 34. Bf6 {[%emt 0:01:48]} Ke8 {[%emt 0:01:07]} 35. h4 {[%emt 0:00:23]} Kd7 {[%emt 0:02:29]} 36. h5 {[%emt 0:00:07]} gxh5 {[%emt 0:00:05]} 37. gxh5 {[%emt 0:00:04]} Ke6 {[%emt 0:00:06]} 38. Bh4 {[%emt 0:03:29]} Bd2 {[%emt 0:00:53]} 39. Kf3 {[%emt 0:00:07]} Bh6 {[%emt 0:03:05]} 40. Kg4 {[%emt 0:03:50]} f6 {[%emt 0:01:28]} 41. Be1 {[%emt 0:30:06]} Bg5 {[%emt 0:31:05]} 42. Bb4 {[%emt 0:00:23]} Bh6 {[%emt 0:01:36]} 43. Ba3 {[%emt 0:00:11]} Be3 {[%emt 0:01:25]} 44. Bf8 {[%emt 0:03:37]} Kf7 {[%emt 0:00:26]} 45. Bd6 {[%emt 0:00:12]} Ke6 {[%emt 0:02:01]} 46. Bb8 {[%emt 0:02:40]} Kd7 {[%emt 0:01:34]} 47. Kf5 {[%emt 0:00:07]} Kc8 {[%emt 0:00:41]} 48. Bd6 {[%emt 0:00:38]} Kd7 {[%emt 0:00:23]} 49. Bb4 {[%emt 0:00:24]} Bg5 {[%emt 0:00:19]} 50. Kg6 {[%emt 0:00:22]} Ke6 {[%emt 0:00:10]} 51. Bf8 {[%emt 0:00:13]} 1-0

[Event "19th Prague Open-A 2020"]
[Site "Prague"]
[Date "2020.01.11"]
[Round "3.1"]
[White "Nasshan, Dennis"]
[Black "Quesada Perez, Luis Ernesto"]
[Result "0-1"]
[ECO "A62"]
[WhiteElo "2307"]
[BlackElo "2491"]
[Annotator "RC"]
[PlyCount "104"]
[EventDate "2020.01.10"]
[EventType "swiss"]
[EventCountry "CZE"]
[SourceTitle "playchess.com"]
[Source "ChessBase"]
[SourceQuality "1"]
[TimeControl "40/5400+30:1800+30"]

1. d4 {[%emt 0:00:00]} Nf6 2. c4 {[%emt 0:00:00]} c5 {[%emt 0:13:46]} 3. d5 {[%emt 0:00:00]} e6 {[%emt 0:00:05]} 4. Nc3 {[%emt 0:00:07]} exd5 {[%emt 0:00:05]} 5. cxd5 {[%emt 0:00:07]} d6 {[%emt 0:00:04]} 6. Nf3 {[%emt 0:02:43]} g6 {[%emt 0:00:24]} 7. g3 {[%emt 0:00:25]} Bg7 {[%emt 0:00:05]} 8. Bg2 {[%emt 0:00:07]} O-O {[%emt 0:00:06]} 9. O-O {[%emt 0:00:04]} Re8 {[%emt 0:01:24]} 10. Nd2 {[%emt 0:00:07]} Nbd7 {[%emt 0:02:03]} 11. h3 {[%emt 0:00:08]} a6 {[%emt 0:00:25]} 12. a4 {[%emt 0:00:06]} Rb8 {[%emt 0:00:59]} 13. Nc4 {[%emt 0:00:15]} Ne5 {[%emt 0:01:40]} 14. Na3 {[%emt 0:01:09]} Nh5 {[%emt 0:00:50]} 15. e4 {[%emt 0:00:15]} Bd7 {[%emt 0:02:37]} 16. a5 {[%emt 0:01:52]} b5 {[%emt 0:03:42]} 17. axb6 {[%emt 0:00:17]} Bb5 {[%emt 0:00:05]} 18. Naxb5 {[%emt 0:00:07]} axb5 {[%emt 0:00:05]} 19. Nxb5 {[%emt 0:00:04]} Qxb6 {[%emt 0:00:09]} 20. Nc3 {[%emt 0:00:08]} Nc4 {[%emt 0:01:15]} 21. Ra2 {[%emt 0:13:58]} Qb3 {[%emt 0:11:14]} 22. Qxb3 Rxb3 23. g4 {[%emt 0:10:40]} Nf6 {[%emt 0:00:41]} 24. f4 {[%emt 0:00:52]} Reb8 {[%emt 0:05:59]} 25. Rf2 {[%emt 0:19:14]} Nd7 {[%emt 0:00:56]} 26. Rc2 {[%emt 0:08:59]} Bd4+ {[%emt 0:32:33]} 27. Kh2 {[%emt 0:03:25]} Be3 {[%emt 0:00:37]} 28. Bxe3 {[%emt 0:14:41]} Nxe3 {[%emt 0:00:28]} 29. Re2 {[%emt 0:00:07]} Nc4 {[%emt 0:00:37]} 30. Nd1 {[%emt 0:04:02]} g5 {[%emt 0:01:29]} 31. Rc2 {[%emt 0:03:37]} Ne3 {[%emt 0:08:55]} 32. Nxe3 Rxe3 {[%emt 0:00:02]} 33. Ra7 {[%emt 0:05:05]} Rd8 {[%emt 0:00:29]} 34. fxg5 {[%emt 0:01:08]} Rb3 {[%emt 0:00:33]} 35. Bf1 {[%emt 0:04:54]} Ne5 {[%emt 0:00:13]} 36. Ra3 {[%emt 0:01:41]} Rb4 {[%emt 0:02:11]} 37. Bg2 {[%emt 0:01:44]} Rdb8 {[%emt 0:01:22]} 38. Ra6 {[%emt 0:01:29]} R4b6 {[%emt 0:01:22]} 39. Rxb6 Rxb6 {[%emt 0:00:01]} 40. Bf1 {[%emt 0:03:50]} Rb3 {[%emt 0:07:56]} 41. Bc4 {[%emt 0:10:25]} Re3 {[%emt 0:00:56]} 42. b3 {[%emt 0:01:58]} Nf3+ {[%emt 0:00:49]} 43. Kh1 {[%emt 0:00:54]} Nxg5 {[%emt 0:00:12]} 44. Re2 {[%emt 0:05:09]} Rxh3+ {[%emt 0:04:26]} 45. Kg2 {[%emt 0:00:35]} f6 {[%emt 0:01:14]} 46. Ra2 {[%emt 0:00:23]} Re3 {[%emt 0:01:29]} 47. Ra8+ {[%emt 0:02:50]} Kg7 {[%emt 0:01:54]} 48. Ra7+ {[%emt 0:00:19]} Kh6 {[%emt 0:00:12]} 49. Rd7 {[%emt 0:03:15]} Nxe4 {[%emt 0:01:01]} 50. Re7 {[%emt 0:00:06]} Kg5 {[%emt 0:03:57]} 51. Rxh7 {[%emt 0:01:28]} Kxg4 {[%emt 0:00:08]} 52. Rg7+ {[%emt 0:00:13]} Kf4 {[%emt 0:00:07]} 0-1

[Event "19th Prague Open-A 2020"]
[Site "Prague"]
[Date "2020.01.11"]
[Round "3.2"]
[White "Stankovic, Milos"]
[Black "Svanda, Ondrej"]
[Result "1/2-1/2"]
[ECO "B47"]
[WhiteElo "2466"]
[BlackElo "2257"]
[Annotator "ChessBase"]
[PlyCount "62"]
[EventDate "2020.01.10"]
[EventType "swiss"]
[EventCountry "CZE"]
[SourceTitle "playchess.com"]
[Source "ChessBase"]
[SourceQuality "1"]
[TimeControl "40/5400+30:1800+30"]

1. e4 {[%emt 0:00:40]} c5 {[%emt 0:00:00]} 2. Nf3 {[%emt 0:00:33]} e6 {[%emt 0:00:00]} 3. d4 {[%emt 0:00:32]} cxd4 {[%emt 0:00:00]} 4. Nxd4 {[%emt 0:00:28]} Nc6 {[%emt 0:00:00]} 5. Nc3 {[%emt 0:00:38]} Qc7 {[%emt 0:00:04]} 6. f4 {[%emt 0:01:22]} a6 {[%emt 0:00:18]} 7. Nxc6 {[%emt 0:01:30]} bxc6 {[%emt 0:00:12]} 8. Bd3 {[%emt 0:00:45]} d5 {[%emt 0:00:37]} 9. O-O {[%emt 0:01:17]} Nf6 {[%emt 0:00:08]} 10. Qf3 {[%emt 0:00:37]} Be7 {[%emt 0:00:34]} 11. Kh1 {[%emt 0:00:31]} O-O {[%emt 0:06:01]} 12. Bd2 {[%emt 0:01:27]} Re8 {[%emt 0:00:17]} 13. Rae1 {[%emt 0:03:28]} Bf8 {[%emt 0:07:49]} 14. Qg3 {[%emt 0:08:42]} g6 {[%emt 0:06:32]} 15. b3 {[%emt 0:13:48]} Bg7 {[%emt 0:09:20]} 16. e5 {[%emt 0:04:12]} Nd7 {[%emt 0:01:33]} 17. h4 {[%emt 0:00:23]} a5 {[%emt 0:04:45]} 18. h5 {[%emt 0:04:52]} Ba6 {[%emt 0:01:48]} 19. Na4 {[%emt 0:01:21]} Bxd3 {[%emt 0:08:21]} 20. cxd3 {[%emt 0:01:35]} c5 {[%emt 0:00:38]} 21. Rc1 {[%emt 0:01:14]} Qa7 {[%emt 0:00:44]} 22. Rc2 {[%emt 0:01:56]} Bf8 {[%emt 0:01:56]} 23. Rfc1 {[%emt 0:02:37]} Qa6 {[%emt 0:03:05]} 24. Qh3 {[%emt 0:01:42]} Rac8 {[%emt 0:02:48]} 25. Be1 {[%emt 0:02:20]} Rc6 {[%emt 0:05:36]} 26. Bf2 {[%emt 0:07:05]} Rec8 {[%emt 0:00:56]} 27. Nc3 {[%emt 0:01:39]} Qb7 {[%emt 0:04:15]} 28. Nd1 {[%emt 0:02:55]} Qa6 {[%emt 0:02:58]} 29. Nc3 {[%emt 0:02:47]} Qb7 {[%emt 0:00:04]} 30. Nd1 {[%emt 0:01:55]} Qa6 {[%emt 0:00:02]} 31. Nc3 {[%emt 0:02:26]} Qb7 1/2-1/2

[Event "19th Prague Open-A 2020"]
[Site "Prague"]
[Date "2020.01.11"]
[Round "3.4"]
[White "Vignesh B"]
[Black "Budnikov, Oleg"]
[Result "1/2-1/2"]
[ECO "B32"]
[WhiteElo "1912"]
[BlackElo "2432"]
[Annotator "ChessBase"]
[PlyCount "81"]
[EventDate "2020.01.10"]
[EventType "swiss"]
[EventCountry "CZE"]
[SourceTitle "playchess.com"]
[Source "ChessBase"]
[SourceQuality "1"]
[TimeControl "40/5400+30:1800+30"]

1. e4 {[%emt 0:00:00]} c5 {[%emt 0:10:18]} 2. Nf3 {[%emt 0:00:00]} Nc6 {[%emt 0:00:11]} 3. d4 {[%emt 0:00:00]} cxd4 {[%emt 0:00:05]} 4. Nxd4 {[%emt 0:00:00]} Qb6 {[%emt 0:01:40]} 5. Nb3 {[%emt 0:00:43]} Nf6 {[%emt 0:00:15]} 6. Nc3 {[%emt 0:00:09]} e6 {[%emt 0:00:07]} 7. Be3 {[%emt 0:00:10]} Qc7 {[%emt 0:00:08]} 8. a3 {[%emt 0:02:19]} a6 {[%emt 0:00:11]} 9. f4 {[%emt 0:01:24]} d6 {[%emt 0:00:08]} 10. a4 {[%emt 0:00:26]} b6 {[%emt 0:00:48]} 11. Be2 {[%emt 0:00:12]} Be7 {[%emt 0:00:07]} 12. O-O {[%emt 0:00:28]} O-O {[%emt 0:00:04]} 13. Bf3 {[%emt 0:03:06]} Rb8 {[%emt 0:00:13]} 14. Qe1 {[%emt 0:07:33]} Na5 {[%emt 0:01:45]} 15. Nd2 {[%emt 0:18:56]} b5 {[%emt 0:14:38]} 16. axb5 {[%emt 0:02:11]} axb5 {[%emt 0:00:06]} 17. Qf2 {[%emt 0:05:53]} b4 {[%emt 0:04:04]} 18. Na4 {[%emt 0:00:29]} Nd7 {[%emt 0:00:26]} 19. Rfc1 {[%emt 0:10:18]} Bf6 {[%emt 0:07:20]} 20. c3 {[%emt 0:02:07]} bxc3 {[%emt 0:00:26]} 21. Nxc3 {[%emt 0:00:33]} Qd8 {[%emt 0:02:28]} 22. Rab1 {[%emt 0:04:26]} Rb4 {[%emt 0:06:12]} 23. b3 {[%emt 0:00:48]} Bxc3 {[%emt 0:02:01]} 24. Rxc3 {[%emt 0:00:03]} Bb7 {[%emt 0:00:32]} 25. Nc4 {[%emt 0:03:28]} Nxc4 {[%emt 0:00:15]} 26. Rxc4 {[%emt 0:00:02]} Rxc4 {[%emt 0:00:31]} 27. bxc4 {[%emt 0:00:02]} Qa8 {[%emt 0:00:47]} 28. Rd1 {[%emt 0:12:53]} Nf6 {[%emt 0:03:31]} 29. e5 {[%emt 0:01:30]} dxe5 {[%emt 0:00:10]} 30. fxe5 {[%emt 0:00:41]} Ne4 {[%emt 0:00:30]} 31. Qc2 {[%emt 0:02:35]} Rc8 {[%emt 0:00:40]} 32. Rd4 {[%emt 0:04:21]} Nc5 {[%emt 0:05:36]} 33. Bxb7 {[%emt 0:01:07]} Qxb7 {[%emt 0:00:11]} 34. h3 {[%emt 0:01:11]} Qc7 {[%emt 0:00:31]} 35. Qd1 {[%emt 0:03:08]} Nb7 {[%emt 0:01:46]} 36. Qh5 {[%emt 0:00:27]} Qa5 {[%emt 0:08:25]} 37. Rd7 {[%emt 0:00:21]} Rf8 {[%emt 0:00:37]} 38. Kh2 {[%emt 0:02:25]} Nd8 {[%emt 0:01:28]} 39. Ra7 {[%emt 0:09:05]} Qb4 {[%emt 0:01:44]} 40. Qg4 {[%emt 0:01:18]} Qb8 {[%emt 0:00:41]} 41. Ra5 {[%emt 0:32:50]} 1/2-1/2

[Event "19th Prague Open-A 2020"]
[Site "Prague"]
[Date "2020.01.11"]
[Round "3.5"]
[White "Pushkov, Nikolai"]
[Black "Lalic, Bogdan"]
[Result "1/2-1/2"]
[ECO "E15"]
[WhiteElo "2239"]
[BlackElo "2402"]
[Annotator "ChessBase"]
[PlyCount "24"]
[EventDate "2020.01.10"]
[EventType "swiss"]
[EventCountry "CZE"]
[SourceTitle "playchess.com"]
[Source "ChessBase"]
[SourceQuality "1"]
[TimeControl "40/5400+30:1800+30"]

1. d4 {[%emt 0:00:00]} Nf6 {[%emt 0:00:00]} 2. c4 {[%emt 0:00:00]} e6 {[%emt 0:00:00]} 3. Nf3 {[%emt 0:00:00]} b6 {[%emt 0:00:00]} 4. g3 {[%emt 0:00:00]} Ba6 {[%emt 0:00:00]} 5. Qa4 {[%emt 0:00:03]} Bb7 {[%emt 0:00:06]} 6. Bg2 {[%emt 0:00:06]} c5 {[%emt 0:00:08]} 7. dxc5 {[%emt 0:00:06]} bxc5 {[%emt 0:00:09]} 8. Nc3 {[%emt 0:00:10]} Be7 {[%emt 0:00:11]} 9. O-O {[%emt 0:00:07]} O-O {[%emt 0:00:10]} 10. Rd1 {[%emt 0:00:06]} Qb6 {[%emt 0:00:13]} 11. Qb5 {[%emt 0:00:24]} Qc7 {[%emt 0:00:26]} 12. Bf4 {[%emt 0:00:14]} d6 {[%emt 0:00:08]} 1/2-1/2

[Event "19th Prague Open-A 2020"]
[Site "Prague"]
[Date "2020.01.11"]
[Round "3.6"]
[White "Sharma Isha"]
[Black "Kozak, Antoni"]
[Result "1-0"]
[ECO "B40"]
[WhiteElo "2169"]
[BlackElo "2380"]
[Annotator "ChessBase"]
[PlyCount "179"]
[EventDate "2020.01.10"]
[EventType "swiss"]
[EventCountry "CZE"]
[SourceTitle "playchess.com"]
[Source "ChessBase"]
[SourceQuality "1"]
[TimeControl "40/5400+30:1800+30"]

1. e4 {[%emt 0:00:00]} c5 {[%emt 0:00:00]} 2. Nf3 {[%emt 0:00:00]} e6 {[%emt 0:00:00]} 3. g3 {[%emt 0:00:08]} d5 {[%emt 0:00:00]} 4. exd5 {[%emt 0:00:05]} exd5 {[%emt 0:00:02]} 5. d4 {[%emt 0:00:24]} Nf6 {[%emt 0:00:05]} 6. Bg2 {[%emt 0:00:21]} cxd4 {[%emt 0:00:10]} 7. O-O {[%emt 0:01:00]} Be7 {[%emt 0:00:03]} 8. Nxd4 {[%emt 0:00:31]} O-O {[%emt 0:00:17]} 9. c3 {[%emt 0:03:53]} Nc6 {[%emt 0:00:36]} 10. Bf4 {[%emt 0:02:44]} Bg4 {[%emt 0:01:48]} 11. Qd3 {[%emt 0:00:27]} Qd7 {[%emt 0:00:27]} 12. Re1 {[%emt 0:02:56]} Bc5 {[%emt 0:10:08]} 13. Nb3 {[%emt 0:00:43]} Bb6 {[%emt 0:00:43]} 14. Na3 {[%emt 0:02:49]} Rfe8 {[%emt 0:22:13]} 15. Nb5 {[%emt 0:12:54]} Ne4 {[%emt 0:02:30]} 16. N5d4 {[%emt 0:00:49]} Bh5 {[%emt 0:02:27]} 17. Qb5 {[%emt 0:09:19]} Bg6 {[%emt 0:09:39]} 18. a4 {[%emt 0:00:47]} Nb8 {[%emt 0:11:28]} 19. Bf1 {[%emt 0:29:31]} Qxb5 {[%emt 0:04:03]} 20. Bxb5 {[%emt 0:00:30]} Rc8 {[%emt 0:00:05]} 21. a5 {[%emt 0:02:02]} Bd8 {[%emt 0:00:50]} 22. f3 {[%emt 0:01:11]} Nf6 {[%emt 0:00:10]} 23. g4 {[%emt 0:00:09]} h6 {[%emt 0:00:20]} 24. h4 {[%emt 0:00:07]} a6 {[%emt 0:00:37]} 25. Bf1 {[%emt 0:01:15]} Nc6 {[%emt 0:05:13]} 26. Bh3 {[%emt 0:03:15]} Bc7 {[%emt 0:00:20]} 27. g5 {[%emt 0:06:25]} Bxf4 {[%emt 0:00:20]} 28. Bxc8 {[%emt 0:00:06]} Rxc8 {[%emt 0:00:04]} 29. gxf6 {[%emt 0:00:05]} Bg3 {[%emt 0:00:49]} 30. Re2 {[%emt 0:09:26]} Bxh4 {[%emt 0:00:46]} 31. fxg7 {[%emt 0:00:19]} Bf6 {[%emt 0:00:06]} 32. Nxc6 {[%emt 0:00:19]} bxc6 {[%emt 0:00:29]} 33. Rd1 {[%emt 0:03:14]} Rb8 {[%emt 0:03:03]} 34. Nc5 {[%emt 0:00:06]} Rb5 {[%emt 0:00:04]} 35. Nxa6 {[%emt 0:00:11]} Rxa5 {[%emt 0:00:04]} 36. Nb4 {[%emt 0:00:04]} Rc5 {[%emt 0:01:20]} 37. Re8+ {[%emt 0:00:34]} Kxg7 {[%emt 0:00:08]} 38. Rc8 {[%emt 0:00:07]} Rb5 {[%emt 0:00:11]} 39. Rxc6 {[%emt 0:00:23]} d4 {[%emt 0:00:03]} 40. Kg2 {[%emt 0:01:54]} dxc3 {[%emt 0:00:29]} 41. bxc3 {[%emt 0:30:30]} Bxc3 42. Rxc3 {[%emt 0:00:10]} Rxb4 {[%emt 0:30:09]} 43. Kg3 {[%emt 0:00:16]} Rb5 {[%emt 0:00:16]} 44. Rd4 {[%emt 0:00:31]} Rg5+ {[%emt 0:00:07]} 45. Kf2 {[%emt 0:00:04]} Ra5 {[%emt 0:00:06]} 46. f4 {[%emt 0:00:30]} Rb5 {[%emt 0:00:21]} 47. Kg3 {[%emt 0:00:12]} Ra5 {[%emt 0:00:06]} 48. Rdc4 {[%emt 0:00:45]} Bf5 {[%emt 0:00:12]} 49. Kh4 {[%emt 0:00:19]} Ra1 {[%emt 0:01:16]} 50. Kg3 {[%emt 0:01:26]} Ra5 {[%emt 0:00:16]} 51. Rc5 {[%emt 0:00:10]} Rxc5 {[%emt 0:00:04]} 52. Rxc5 {[%emt 0:00:02]} Kg6 {[%emt 0:00:06]} 53. Rc6+ {[%emt 0:00:35]} f6 {[%emt 0:00:07]} 54. Rc7 {[%emt 0:00:23]} Be4 {[%emt 0:00:13]} 55. Kg4 {[%emt 0:00:18]} Bf5+ {[%emt 0:00:04]} 56. Kh4 {[%emt 0:00:04]} Be4 {[%emt 0:00:55]} 57. Rc5 {[%emt 0:00:14]} Bf5 {[%emt 0:00:05]} 58. Ra5 {[%emt 0:00:11]} Bd3 {[%emt 0:00:15]} 59. Kg4 {[%emt 0:00:12]} Be2+ {[%emt 0:00:03]} 60. Kg3 {[%emt 0:00:03]} Bd3 {[%emt 0:00:04]} 61. Kf3 {[%emt 0:00:15]} Bf5 {[%emt 0:00:24]} 62. Ra1 {[%emt 0:00:37]} Bc2 {[%emt 0:00:27]} 63. Rg1+ {[%emt 0:00:10]} Kf5 {[%emt 0:00:23]} 64. Ke3 {[%emt 0:00:04]} h5 {[%emt 0:01:03]} 65. Rc1 {[%emt 0:01:20]} Bb3 {[%emt 0:01:15]} 66. Rc3 {[%emt 0:00:29]} Bd1 {[%emt 0:00:10]} 67. Rc5+ {[%emt 0:00:28]} Kg4 {[%emt 0:01:14]} 68. Rc1 {[%emt 0:00:06]} Ba4 {[%emt 0:01:15]} 69. Ke4 {[%emt 0:01:32]} Bd7 {[%emt 0:04:02]} 70. Rg1+ {[%emt 0:02:34]} Kh3 {[%emt 0:00:06]} 71. f5 {[%emt 0:01:27]} h4 {[%emt 0:07:39]} 72. Kf4 {[%emt 0:03:03]} Kh2 {[%emt 0:00:17]} 73. Rd1 {[%emt 0:01:11]} Bc8 {[%emt 0:00:42]} 74. Rd2+ {[%emt 0:00:36]} Kg1 {[%emt 0:00:19]} 75. Rd1+ {[%emt 0:00:00]} Kg2 {[%emt 0:00:00]} 76. Rd2+ {[%emt 0:00:00]} Kg1 {[%emt 0:00:00]} 77. Rd8 {[%emt 0:00:00]} Bxf5 {[%emt 0:00:00]} 78. Kxf5 {[%emt 0:00:00]} h3 {[%emt 0:00:00]} 79. Kg4 {[%emt 0:00:00]} h2 {[%emt 0:00:00]} 80. Rd1+ {[%emt 0:00:00]} Kg2 {[%emt 0:00:00]} 81. Rd2+ {[%emt 0:00:00]} Kg1 {[%emt 0:00:00]} 82. Kg3 {[%emt 0:00:00]} h1=N+ {[%emt 0:00:00]} 83. Kf3 {[%emt 0:00:00]} f5 {[%emt 0:00:00]} 84. Rd1+ {[%emt 0:00:00]} Kh2 {[%emt 0:00:00]} 85. Rd8 {[%emt 0:00:00]} f4 {[%emt 0:00:00]} 86. Rd2+ {[%emt 0:00:07]} Kg1 {[%emt 0:00:00]} 87. Kxf4 {[%emt 0:00:07]} Nf2 {[%emt 0:00:00]} 88. Kf3 {[%emt 0:00:04]} Nh3 {[%emt 0:00:00]} 89. Kg3 {[%emt 0:00:04]} Ng5 {[%emt 0:00:00]} 90. Rd1# {[%emt 0:00:05]} 1-0

[Event "19th Prague Open-A 2020"]
[Site "Prague"]
[Date "2020.01.11"]
[Round "3.7"]
[White "Hrbek, Stepan"]
[Black "Peng, Hongchi"]
[Result "0-1"]
[ECO "B47"]
[WhiteElo "2126"]
[BlackElo "2362"]
[Annotator "ChessBase"]
[PlyCount "88"]
[EventDate "2020.01.10"]
[EventType "swiss"]
[EventCountry "CZE"]
[SourceTitle "playchess.com"]
[Source "ChessBase"]
[SourceQuality "1"]
[TimeControl "40/5400+30:1800+30"]

1. e4 {[%emt 0:00:00]} c5 {[%emt 0:00:00]} 2. Nf3 {[%emt 0:00:00]} e6 {[%emt 0:00:00]} 3. d4 {[%emt 0:00:00]} cxd4 {[%emt 0:00:00]} 4. Nxd4 {[%emt 0:00:03]} Nc6 {[%emt 0:00:00]} 5. Nc3 {[%emt 0:00:08]} Qc7 {[%emt 0:00:02]} 6. Be2 {[%emt 0:00:31]} a6 {[%emt 0:00:06]} 7. O-O {[%emt 0:00:07]} Nf6 {[%emt 0:00:09]} 8. Be3 {[%emt 0:00:09]} b5 {[%emt 0:00:58]} 9. Nxc6 {[%emt 0:00:26]} dxc6 {[%emt 0:00:15]} 10. f4 {[%emt 0:00:49]} b4 {[%emt 0:09:06]} 11. Na4 {[%emt 0:05:17]} Rb8 {[%emt 0:00:11]} 12. Bf3 {[%emt 0:02:36]} Be7 {[%emt 0:00:19]} 13. b3 {[%emt 0:01:06]} O-O {[%emt 0:00:30]} 14. Nb2 {[%emt 0:00:42]} a5 {[%emt 0:07:50]} 15. Nc4 {[%emt 0:02:42]} Ba6 {[%emt 0:00:21]} 16. Qe1 {[%emt 0:01:11]} Bxc4 {[%emt 0:06:05]} 17. bxc4 {[%emt 0:00:12]} Nd7 {[%emt 0:00:44]} 18. Qe2 {[%emt 0:13:25]} Bc5 {[%emt 0:00:28]} 19. Bxc5 {[%emt 0:08:13]} Nxc5 {[%emt 0:00:05]} 20. e5 {[%emt 0:00:04]} Rfd8 {[%emt 0:06:09]} 21. Qe3 {[%emt 0:09:27]} Nd7 {[%emt 0:09:25]} 22. Rfd1 {[%emt 0:12:07]} Qb6 {[%emt 0:12:27]} 23. Qxb6 {[%emt 0:01:31]} Nxb6 {[%emt 0:00:08]} 24. Bxc6 {[%emt 0:00:09]} Nxc4 {[%emt 0:00:24]} 25. Kf2 {[%emt 0:12:25]} Rdc8 {[%emt 0:02:48]} 26. Be4 {[%emt 0:01:29]} Rc7 {[%emt 0:00:48]} 27. Rd4 {[%emt 0:07:36]} Kf8 {[%emt 0:01:53]} 28. Rad1 {[%emt 0:00:19]} Ke7 {[%emt 0:00:38]} 29. Ke2 {[%emt 0:02:31]} Na3 {[%emt 0:00:48]} 30. Kd2 {[%emt 0:05:57]} Nb5 {[%emt 0:03:52]} 31. Rd3 {[%emt 0:00:07]} Nc3 {[%emt 0:02:34]} 32. Re1 {[%emt 0:00:04]} Rbc8 {[%emt 0:03:01]} 33. Bf3 {[%emt 0:02:51]} Nxa2 {[%emt 0:00:50]} 34. Bd1 {[%emt 0:00:09]} Nc3 {[%emt 0:01:37]} 35. Bf3 {[%emt 0:00:06]} Na4 {[%emt 0:09:48]} 36. Rc1 {[%emt 0:01:59]} Nb2 {[%emt 0:00:38]} 37. Rb3 {[%emt 0:00:51]} Nc4+ {[%emt 0:00:17]} 38. Kd1 {[%emt 0:00:14]} Rd8+ {[%emt 0:07:33]} 39. Ke2 {[%emt 0:01:57]} Na3 {[%emt 0:00:24]} 40. Be4 {[%emt 0:00:06]} Nb5 {[%emt 0:00:15]} 41. Rd3 {[%emt 0:31:38]} b3 {[%emt 0:33:10]} 42. Rxd8 Kxd8 {[%emt 0:00:02]} 43. Kd3 {[%emt 0:02:24]} b2 {[%emt 0:00:23]} 44. Rb1 {[%emt 0:00:09]} Rd7+ {[%emt 0:00:09] Kd4} 0-1